[Event "Titled Tuesday Blitz June 29 2021"]
[White "Matensien"]
[Black "Niktlt"]
[WhiteElo "2460"]
[BlackElo "2615"]
[Result "0-1"]
[Round "11"]
[TimeControl "180+1"]
[Date "2021.06.29"]
[WhiteClock "0:00:02"]
[BlackClock "0:02:03"]

1. d4 {[%clk 0:03:00]}  Nf6 {[%clk 0:02:55]} 2. c4 {[%clk 0:03:01]}  g6 {[%clk 0:02:56]} 3. Nf3 {[%clk 0:02:59]}  Bg7 {[%clk 0:02:56]} 4. g3 {[%clk 0:02:59]}  O-O {[%clk 0:02:55]} 5. Bg2 {[%clk 0:03:00]}  d6 {[%clk 0:02:56]} 6. O-O {[%clk 0:03:00]}  Nc6 {[%clk 0:02:57]} 7. Nc3 {[%clk 0:03:01]}  Bf5 {[%clk 0:02:57]} 8. Ne1 {[%clk 0:03:00]}  Qd7 {[%clk 0:02:55]} 9. e4 {[%clk 0:02:55]}  Bh3 {[%clk 0:02:55]} 10. Nc2 {[%clk 0:02:49]}  Bxg2 {[%clk 0:02:54]} 11. Kxg2 {[%clk 0:02:49]}  e5 {[%clk 0:02:55]} 12. d5 {[%clk 0:02:46]}  Ne7 {[%clk 0:02:55]} 13. f3 {[%clk 0:02:34]}  Nh5 {[%clk 0:02:53]} 14. Be3 {[%clk 0:02:33]}  b6 {[%clk 0:02:52]} 15. b4 {[%clk 0:02:31]}  a5 {[%clk 0:02:53]} 16. a3 {[%clk 0:02:29]}  f5 {[%clk 0:02:53]} 17. c5 {[%clk 0:02:16]}  f4 {[%clk 0:02:52]} 18. Bf2 {[%clk 0:02:12]}  fxg3 {[%clk 0:02:52]} 19. hxg3 {[%clk 0:02:12]}  axb4 {[%clk 0:02:53]} 20. axb4 {[%clk 0:02:11]}  bxc5 {[%clk 0:02:53]} 21. bxc5 {[%clk 0:02:01]}  Rxa1 {[%clk 0:02:52]} 22. Qxa1 {[%clk 0:02:01]}  g5 {[%clk 0:02:53]} 23. Ne3 {[%clk 0:01:53]}  Ng6 {[%clk 0:02:51]} 24. Qa4 {[%clk 0:01:42]}  Ngf4+ {[%clk 0:02:47]} 25. gxf4 {[%clk 0:01:29]}  Nxf4+ {[%clk 0:02:48]} 26. Kg1 {[%clk 0:01:28]}  Qh3 {[%clk 0:02:41]} 27. Be1 {[%clk 0:00:58]}  Rf6 {[%clk 0:02:27]} 28. Qa2 {[%clk 0:00:23]}  Rh6 {[%clk 0:02:22]} 29. Ng4 {[%clk 0:00:20]}  Qh1+ {[%clk 0:02:20]} 30. Kf2 {[%clk 0:00:20]}  Rh2+ {[%clk 0:02:21]} 31. Nxh2 {[%clk 0:00:20]}  Qxh2+ {[%clk 0:02:22]} 32. Ke3 {[%clk 0:00:16]}  Qh3 {[%clk 0:02:19]} 33. Qf2 {[%clk 0:00:11]}  h5 {[%clk 0:02:17]} 34. Rg1 {[%clk 0:00:10]}  Bf6 {[%clk 0:02:13]} 35. Qg3 {[%clk 0:00:09]}  Qc8 {[%clk 0:02:12]} 36. Qh2 {[%clk 0:00:03]}  Qa6 {[%clk 0:02:08]} 37. Qd2 {[%clk 0:00:03]}  Kf7 {[%clk 0:02:06]} 38. Bg3 {[%clk 0:00:02]}  Nh3 {[%clk 0:02:03]} 39. Rh1 {[%clk 0:00:02]}  g4 {[%clk 0:02:03]} 40. fxg4 {[%clk 0:00:02]}  Bg5+ {[%clk 0:02:03]} 0-1


[Site "https://www.chess.com"]

[Event "Titled Tuesday Blitz June 29 2021"]
[White "Meri-Arabidze"]
[Black "Gabrielian_Artur"]
[WhiteElo "2661"]
[BlackElo "2802"]
[Result "0-1"]
[Round "11"]
[TimeControl "180+1"]
[Date "2021.06.29"]
[WhiteClock "0:00:01"]
[BlackClock "0:00:13"]

1. d4 {[%clk 0:03:00]}  Nf6 {[%clk 0:02:59]} 2. Nf3 {[%clk 0:03:01]}  e6 {[%clk 0:02:58]} 3. c4 {[%clk 0:03:01]}  c5 {[%clk 0:02:58]} 4. d5 {[%clk 0:03:00]}  exd5 {[%clk 0:02:59]} 5. cxd5 {[%clk 0:03:00]}  d6 {[%clk 0:02:59]} 6. Nc3 {[%clk 0:03:00]}  g6 {[%clk 0:03:00]} 7. e4 {[%clk 0:02:59]}  Bg7 {[%clk 0:03:00]} 8. h3 {[%clk 0:02:52]}  O-O {[%clk 0:03:00]} 9. Nd2 {[%clk 0:02:44]}  Re8 {[%clk 0:02:55]} 10. Bb5 {[%clk 0:02:37]}  Nbd7 {[%clk 0:02:52]} 11. O-O {[%clk 0:02:32]}  a6 {[%clk 0:02:52]} 12. Bxd7 {[%clk 0:02:24]}  Bxd7 {[%clk 0:02:53]} 13. Re1 {[%clk 0:02:09]}  b5 {[%clk 0:02:52]} 14. a4 {[%clk 0:01:52]}  b4 {[%clk 0:02:33]} 15. Ncb1 {[%clk 0:01:51]}  Rc8 {[%clk 0:02:34]} 16. Nc4 {[%clk 0:01:25]}  Nxe4 {[%clk 0:02:26]} 17. Bf4 {[%clk 0:01:17]}  Bd4 {[%clk 0:02:18]} 18. Be3 {[%clk 0:01:10]}  Qf6 {[%clk 0:02:17]} 19. Qf3 {[%clk 0:00:55]}  Qxf3 {[%clk 0:02:15]} 20. gxf3 {[%clk 0:00:56]}  Ng5 {[%clk 0:02:15]} 21. Nbd2 {[%clk 0:00:51]}  Nxh3+ {[%clk 0:01:37]} 22. Kg2 {[%clk 0:00:51]}  Be5 {[%clk 0:01:31]} 23. Ne4 {[%clk 0:00:45]}  Rcd8 {[%clk 0:01:21]} 24. Nexd6 {[%clk 0:00:35]}  Re7 {[%clk 0:01:03]} 25. Nb7 {[%clk 0:00:26]}  Rb8 {[%clk 0:00:38]} 26. Nxc5 {[%clk 0:00:26]}  Bf5 {[%clk 0:00:38]} 27. Nxe5 {[%clk 0:00:22]}  Rxe5 {[%clk 0:00:37]} 28. Nxa6 {[%clk 0:00:19]}  Rc8 {[%clk 0:00:33]} 29. d6 {[%clk 0:00:17]}  Rc6 {[%clk 0:00:26]} 30. d7 {[%clk 0:00:14]}  Rd5 {[%clk 0:00:17]} 31. Nb8 {[%clk 0:00:12]}  Rcd6 {[%clk 0:00:14]} 32. a5 {[%clk 0:00:10]}  g5 {[%clk 0:00:13]} 33. a6 {[%clk 0:00:10]}  Nf4+ {[%clk 0:00:14]} 34. Bxf4 {[%clk 0:00:10]}  gxf4 {[%clk 0:00:14]} 35. a7 {[%clk 0:00:10]}  Rg6+ {[%clk 0:00:15]} 36. Kf1 {[%clk 0:00:05]}  Bd3+ {[%clk 0:00:14]} 37. Re2 {[%clk 0:00:05]}  Re6 {[%clk 0:00:12]} 38. a8=Q {[%clk 0:00:03]}  Bxe2+ {[%clk 0:00:13]} 39. Ke1 {[%clk 0:00:01]}  Ba6# {[%clk 0:00:13]} 0-1


[Site "https://www.chess.com"]

[Event "Titled Tuesday Blitz June 29 2021"]
[White "N4700000"]
[Black "Fh2411"]
[WhiteElo "2387"]
[BlackElo "2526"]
[Result "1-0"]
[Round "11"]
[TimeControl "180+1"]
[Date "2021.06.29"]
[WhiteClock "0:00:18"]
[BlackClock "0:00:01"]

1. e4 {[%clk 0:03:00]}  c6 {[%clk 0:02:57]} 2. Nf3 {[%clk 0:02:59]}  d5 {[%clk 0:02:56]} 3. d3 {[%clk 0:02:59]}  Bg4 {[%clk 0:02:55]} 4. h3 {[%clk 0:02:57]}  Bh5 {[%clk 0:02:36]} 5. Nbd2 {[%clk 0:02:49]}  e6 {[%clk 0:02:35]} 6. g4 {[%clk 0:02:45]}  Bg6 {[%clk 0:02:35]} 7. Bg2 {[%clk 0:02:43]}  Nd7 {[%clk 0:02:34]} 8. Qe2 {[%clk 0:02:42]}  h5 {[%clk 0:02:27]} 9. g5 {[%clk 0:02:33]}  h4 {[%clk 0:02:14]} 10. Nb3 {[%clk 0:02:23]}  Bd6 {[%clk 0:02:00]} 11. Bd2 {[%clk 0:02:15]}  Ne7 {[%clk 0:01:58]} 12. Bc3 {[%clk 0:02:12]}  Rh7 {[%clk 0:01:54]} 13. O-O-O {[%clk 0:02:02]}  Bf4+ {[%clk 0:01:28]} 14. Kb1 {[%clk 0:02:01]}  Qc7 {[%clk 0:01:24]} 15. exd5 {[%clk 0:01:49]}  Nxd5 {[%clk 0:01:15]} 16. Ba5 {[%clk 0:01:43]}  b6 {[%clk 0:00:56]} 17. Bd2 {[%clk 0:01:42]}  Bxd2 {[%clk 0:00:51]} 18. Qxd2 {[%clk 0:01:41]}  Nf4 {[%clk 0:00:38]} 19. Bf1 {[%clk 0:01:37]}  Bh5 {[%clk 0:00:38]} 20. Qe3 {[%clk 0:01:23]}  Kf8 {[%clk 0:00:25]} 21. Re1 {[%clk 0:01:20]}  Re8 {[%clk 0:00:21]} 22. Nxh4 {[%clk 0:01:08]}  Nd5 {[%clk 0:00:20]} 23. Qd2 {[%clk 0:01:05]}  Qf4 {[%clk 0:00:19]} 24. Qxf4 {[%clk 0:01:00]}  Nxf4 {[%clk 0:00:20]} 25. Nd2 {[%clk 0:00:51]}  Bd1 {[%clk 0:00:15]} 26. Ng2 {[%clk 0:00:49]}  Nxg2 {[%clk 0:00:14]} 27. Bxg2 {[%clk 0:00:49]}  Bh5 {[%clk 0:00:13]} 28. Bxc6 {[%clk 0:00:49]}  Re7 {[%clk 0:00:14]} 29. h4 {[%clk 0:00:42]}  Bg6 {[%clk 0:00:14]} 30. Be4 {[%clk 0:00:41]}  Bxe4 {[%clk 0:00:13]} 31. Nxe4 {[%clk 0:00:41]}  Rh5 {[%clk 0:00:12]} 32. Ng3 {[%clk 0:00:41]}  Rh8 {[%clk 0:00:11]} 33. h5 {[%clk 0:00:41]}  Nc5 {[%clk 0:00:12]} 34. f4 {[%clk 0:00:39]}  Rd7 {[%clk 0:00:10]} 35. f5 {[%clk 0:00:37]}  Rd5 {[%clk 0:00:11]} 36. Ref1 {[%clk 0:00:31]}  Ke7 {[%clk 0:00:10]} 37. b4 {[%clk 0:00:27]}  Na4 {[%clk 0:00:09]} 38. f6+ {[%clk 0:00:25]}  gxf6 {[%clk 0:00:09]} 39. gxf6+ {[%clk 0:00:25]}  Kd7 {[%clk 0:00:10]} 40. h6 {[%clk 0:00:23]}  Rd4 {[%clk 0:00:03]} 41. a3 {[%clk 0:00:21]}  b5 {[%clk 0:00:03]} 42. Ne4 {[%clk 0:00:20]}  Kc6 {[%clk 0:00:04]} 43. Rh5 {[%clk 0:00:18]}  a6 {[%clk 0:00:03]} 44. h7 {[%clk 0:00:18]}  Nb6 {[%clk 0:00:02]} 45. Rg1 {[%clk 0:00:18]}  Rdd8 {[%clk 0:00:01]} 46. Rg7 {[%clk 0:00:18]}  Nd5 {[%clk 0:00:01]} 47. Rxf7 {[%clk 0:00:18]} 1-0


[Site "https://www.chess.com"]

[Event "Titled Tuesday Blitz June 29 2021"]
[White "Oleksandr_Bortnyk"]
[Black "viditchess"]
[WhiteElo "3038"]
[BlackElo "3089"]
[Result "1/2-1/2"]
[Round "11"]
[TimeControl "180+1"]
[Date "2021.06.29"]
[WhiteClock "0:00:05"]
[BlackClock "0:00:02"]

1. e4 {[%clk 0:03:00]}  c5 {[%clk 0:02:59]} 2. c3 {[%clk 0:03:00]}  d5 {[%clk 0:02:57]} 3. exd5 {[%clk 0:03:01]}  Qxd5 {[%clk 0:02:58]} 4. d4 {[%clk 0:03:02]}  Nf6 {[%clk 0:02:58]} 5. Nf3 {[%clk 0:03:01]}  e6 {[%clk 0:02:57]} 6. Be3 {[%clk 0:03:01]}  cxd4 {[%clk 0:02:49]} 7. cxd4 {[%clk 0:03:02]}  Bb4+ {[%clk 0:02:50]} 8. Nc3 {[%clk 0:03:01]}  Qa5 {[%clk 0:02:48]} 9. Rc1 {[%clk 0:02:31]}  b6 {[%clk 0:02:28]} 10. Bd3 {[%clk 0:02:29]}  Ba6 {[%clk 0:02:25]} 11. O-O {[%clk 0:02:28]}  O-O {[%clk 0:02:23]} 12. Ne5 {[%clk 0:02:25]}  Bxd3 {[%clk 0:02:17]} 13. Qxd3 {[%clk 0:02:26]}  Bxc3 {[%clk 0:02:02]} 14. bxc3 {[%clk 0:02:02]}  Nbd7 {[%clk 0:01:59]} 15. Nxd7 {[%clk 0:01:33]}  Nxd7 {[%clk 0:02:00]} 16. c4 {[%clk 0:01:33]}  Rac8 {[%clk 0:01:58]} 17. h3 {[%clk 0:01:17]}  Qxa2 {[%clk 0:01:48]} 18. Bf4 {[%clk 0:00:48]}  Rfd8 {[%clk 0:01:36]} 19. Bg5 {[%clk 0:00:45]}  Re8 {[%clk 0:01:33]} 20. Rfd1 {[%clk 0:00:40]}  Qa6 {[%clk 0:01:29]} 21. Qb3 {[%clk 0:00:31]}  h6 {[%clk 0:01:27]} 22. Bf4 {[%clk 0:00:30]}  Rc6 {[%clk 0:01:19]} 23. Qg3 {[%clk 0:00:20]}  Kh8 {[%clk 0:01:13]} 24. d5 {[%clk 0:00:20]}  exd5 {[%clk 0:01:04]} 25. cxd5 {[%clk 0:00:21]}  Rxc1 {[%clk 0:01:03]} 26. Rxc1 {[%clk 0:00:17]}  Nf6 {[%clk 0:00:49]} 27. d6 {[%clk 0:00:15]}  Qe2 {[%clk 0:00:37]} 28. Be3 {[%clk 0:00:11]}  Qd3 {[%clk 0:00:24]} 29. Rc7 {[%clk 0:00:09]}  Kg8 {[%clk 0:00:21]} 30. Rxa7 {[%clk 0:00:04]}  Ne4 {[%clk 0:00:19]} 31. Qf4 {[%clk 0:00:02]}  Qd1+ {[%clk 0:00:14]} 32. Kh2 {[%clk 0:00:02]}  Qxd6 {[%clk 0:00:14]} 33. Qxd6 {[%clk 0:00:02]}  Nxd6 {[%clk 0:00:13]} 34. Bxb6 {[%clk 0:00:02]}  Nf5 {[%clk 0:00:13]} 35. Bc5 {[%clk 0:00:02]}  Rc8 {[%clk 0:00:12]} 36. Ra5 {[%clk 0:00:02]}  Nh4 {[%clk 0:00:12]} 37. Be3 {[%clk 0:00:02]}  Ng6 {[%clk 0:00:12]} 38. g3 {[%clk 0:00:02]}  Re8 {[%clk 0:00:12]} 39. h4 {[%clk 0:00:03]}  Ne5 {[%clk 0:00:13]} 40. Kg2 {[%clk 0:00:03]}  Ng4 {[%clk 0:00:13]} 41. Bb6 {[%clk 0:00:02]}  Nf6 {[%clk 0:00:13]} 42. Bd4 {[%clk 0:00:02]}  Nh7 {[%clk 0:00:12]} 43. Ra7 {[%clk 0:00:02]}  Nf8 {[%clk 0:00:12]} 44. Be3 {[%clk 0:00:02]}  Ne6 {[%clk 0:00:12]} 45. Ra4 {[%clk 0:00:02]}  Rc8 {[%clk 0:00:12]} 46. Rg4 {[%clk 0:00:03]}  h5 {[%clk 0:00:10]} 47. Re4 {[%clk 0:00:03]}  g6 {[%clk 0:00:10]} 48. Rb4 {[%clk 0:00:03]}  Kg7 {[%clk 0:00:10]} 49. Rb2 {[%clk 0:00:04]}  Kf6 {[%clk 0:00:10]} 50. Ra2 {[%clk 0:00:04]}  Rc4 {[%clk 0:00:10]} 51. Ra6 {[%clk 0:00:04]}  Kg7 {[%clk 0:00:11]} 52. Ra7 {[%clk 0:00:04]}  Re4 {[%clk 0:00:10]} 53. Ra6 {[%clk 0:00:04]}  Rc4 {[%clk 0:00:10]} 54. Rd6 {[%clk 0:00:04]}  Ra4 {[%clk 0:00:09]} 55. Rd7 {[%clk 0:00:04]}  Rc4 {[%clk 0:00:09]} 56. Rd5 {[%clk 0:00:05]}  Ra4 {[%clk 0:00:09]} 57. Rd2 {[%clk 0:00:04]}  Rc4 {[%clk 0:00:09]} 58. Rb2 {[%clk 0:00:04]}  Kf6 {[%clk 0:00:09]} 59. Rb8 {[%clk 0:00:04]}  Kg7 {[%clk 0:00:09]} 60. Ra8 {[%clk 0:00:04]}  Kf6 {[%clk 0:00:09]} 61. Rg8 {[%clk 0:00:04]}  Ke7 {[%clk 0:00:08]} 62. Ra8 {[%clk 0:00:03]}  Kf6 {[%clk 0:00:08]} 63. Ra7 {[%clk 0:00:03]}  Kg7 {[%clk 0:00:08]} 64. Rb7 {[%clk 0:00:04]}  Kf6 {[%clk 0:00:08]} 65. Rb3 {[%clk 0:00:04]}  Kg7 {[%clk 0:00:08]} 66. Rb2 {[%clk 0:00:04]}  Kf6 {[%clk 0:00:08]} 67. Re2 {[%clk 0:00:05]}  Kg7 {[%clk 0:00:07]} 68. Bd2 {[%clk 0:00:05]}  Kf6 {[%clk 0:00:06]} 69. Re3 {[%clk 0:00:06]}  Ke7 {[%clk 0:00:05]} 70. Bc3 {[%clk 0:00:06]}  Kd6 {[%clk 0:00:05]} 71. Bf6 {[%clk 0:00:06]}  Kd7 {[%clk 0:00:04]} 72. Rd3+ {[%clk 0:00:06]}  Kc6 {[%clk 0:00:03]} 73. Rf3 {[%clk 0:00:05]}  Kd7 {[%clk 0:00:03]} 74. Rd3+ {[%clk 0:00:06]}  Kc6 {[%clk 0:00:03]} 75. Be7 {[%clk 0:00:06]}  Re4 {[%clk 0:00:03]} 76. Bf6 {[%clk 0:00:05]}  Rc4 {[%clk 0:00:02]} 1/2-1/2


[Site "https://www.chess.com"]

[Event "Titled Tuesday Blitz June 29 2021"]
[White "OrtizAnahi2001"]
[Black "Buffy7"]
[WhiteElo "2419"]
[BlackElo "2678"]
[Result "0-1"]
[Round "11"]
[TimeControl "180+1"]
[Date "2021.06.29"]
[WhiteClock "0:00:13"]
[BlackClock "0:00:43"]

1. d4 {[%clk 0:03:00]}  e6 {[%clk 0:03:00]} 2. c4 {[%clk 0:03:00]}  g5 {[%clk 0:03:00]} 3. b3 {[%clk 0:02:53]}  Bg7 {[%clk 0:02:59]} 4. Bb2 {[%clk 0:02:54]}  Ne7 {[%clk 0:02:55]} 5. e3 {[%clk 0:02:54]}  h5 {[%clk 0:02:52]} 6. Bd3 {[%clk 0:02:53]}  b6 {[%clk 0:02:49]} 7. Nf3 {[%clk 0:02:46]}  g4 {[%clk 0:02:48]} 8. Nh4 {[%clk 0:02:31]}  Bb7 {[%clk 0:02:45]} 9. Rg1 {[%clk 0:02:31]}  Bf6 {[%clk 0:02:33]} 10. g3 {[%clk 0:02:27]}  Bxh4 {[%clk 0:02:33]} 11. gxh4 {[%clk 0:02:27]}  d5 {[%clk 0:02:28]} 12. Qc2 {[%clk 0:02:25]}  f5 {[%clk 0:02:24]} 13. Nd2 {[%clk 0:02:01]}  Nd7 {[%clk 0:02:21]} 14. O-O-O {[%clk 0:02:00]}  Nf6 {[%clk 0:02:19]} 15. f3 {[%clk 0:01:59]}  Qd7 {[%clk 0:02:12]} 16. h3 {[%clk 0:01:51]}  O-O-O {[%clk 0:02:09]} 17. Kb1 {[%clk 0:01:45]}  Rhg8 {[%clk 0:02:01]} 18. hxg4 {[%clk 0:01:43]}  hxg4 {[%clk 0:02:00]} 19. fxg4 {[%clk 0:01:38]}  Nxg4 {[%clk 0:02:00]} 20. Rg3 {[%clk 0:01:27]}  Rh8 {[%clk 0:01:56]} 21. Rdg1 {[%clk 0:01:15]}  Rxh4 {[%clk 0:01:55]} 22. Nf3 {[%clk 0:01:14]}  dxc4 {[%clk 0:01:50]} 23. bxc4 {[%clk 0:01:01]}  Bxf3 {[%clk 0:01:30]} 24. Rxf3 {[%clk 0:01:01]}  Rh2 {[%clk 0:01:29]} 25. Qb3 {[%clk 0:00:56]}  Nc6 {[%clk 0:01:24]} 26. c5 {[%clk 0:00:51]}  Na5 {[%clk 0:01:15]} 27. Qb4 {[%clk 0:00:44]}  Qd5 {[%clk 0:01:09]} 28. Rfg3 {[%clk 0:00:35]}  Nf2 {[%clk 0:01:06]} 29. Ba6+ {[%clk 0:00:34]}  Kb8 {[%clk 0:01:07]} 30. cxb6 {[%clk 0:00:33]}  axb6 {[%clk 0:01:06]} 31. Rc1 {[%clk 0:00:32]}  Rh7 {[%clk 0:01:00]} 32. Rc5 {[%clk 0:00:18]}  Qe4+ {[%clk 0:01:00]} 33. Ka1 {[%clk 0:00:17]}  Rh1+ {[%clk 0:00:57]} 34. Bc1 {[%clk 0:00:16]}  Nd3 {[%clk 0:00:57]} 35. Bxd3 {[%clk 0:00:15]}  Qxd3 {[%clk 0:00:58]} 36. Rg7 {[%clk 0:00:13]}  Qxe3 {[%clk 0:00:46]} 37. Rcxc7 {[%clk 0:00:13]}  Rxc1+ {[%clk 0:00:46]} 38. Kb2 {[%clk 0:00:13]}  Rxc7 {[%clk 0:00:43]} 39. Qxb6+ {[%clk 0:00:13]}  Rb7 {[%clk 0:00:42]} 40. Rxb7+ {[%clk 0:00:13]}  Nxb7 {[%clk 0:00:43]} 0-1


[Site "https://www.chess.com"]

[Event "Titled Tuesday Blitz June 29 2021"]
[White "PLAYER_2006_M"]
[Black "QuintilianoR"]
[WhiteElo "2572"]
[BlackElo "2656"]
[Result "1-0"]
[Round "11"]
[TimeControl "180+1"]
[Date "2021.06.29"]
[WhiteClock "0:01:08"]
[BlackClock "0:00:02"]

1. e4 {[%clk 0:03:00]}  c5 {[%clk 0:02:59]} 2. Nf3 {[%clk 0:03:00]}  d6 {[%clk 0:03:00]} 3. Bb5+ {[%clk 0:03:00]}  Nd7 {[%clk 0:02:59]} 4. O-O {[%clk 0:03:00]}  a6 {[%clk 0:02:58]} 5. Bd3 {[%clk 0:02:59]}  Ngf6 {[%clk 0:02:53]} 6. Re1 {[%clk 0:02:59]}  e6 {[%clk 0:02:53]} 7. c3 {[%clk 0:02:59]}  b5 {[%clk 0:02:53]} 8. Bc2 {[%clk 0:02:59]}  Bb7 {[%clk 0:02:52]} 9. d4 {[%clk 0:02:59]}  Be7 {[%clk 0:02:49]} 10. Nbd2 {[%clk 0:02:59]}  Qc7 {[%clk 0:02:49]} 11. Nf1 {[%clk 0:02:59]}  cxd4 {[%clk 0:02:32]} 12. cxd4 {[%clk 0:03:00]}  Rc8 {[%clk 0:02:33]} 13. Bd3 {[%clk 0:02:59]}  O-O {[%clk 0:02:32]} 14. Ng3 {[%clk 0:02:59]}  Rfd8 {[%clk 0:02:32]} 15. Bg5 {[%clk 0:02:55]}  Nf8 {[%clk 0:02:26]} 16. Rc1 {[%clk 0:02:53]}  Qb6 {[%clk 0:02:20]} 17. Qd2 {[%clk 0:02:51]}  Ng6 {[%clk 0:02:06]} 18. h3 {[%clk 0:02:47]}  h6 {[%clk 0:01:51]} 19. Be3 {[%clk 0:02:46]}  d5 {[%clk 0:01:50]} 20. e5 {[%clk 0:02:28]}  Ne4 {[%clk 0:01:47]} 21. Bxe4 {[%clk 0:02:28]}  dxe4 {[%clk 0:01:43]} 22. d5 {[%clk 0:02:28]}  Bc5 {[%clk 0:01:16]} 23. Rxc5 {[%clk 0:02:28]}  Rxc5 {[%clk 0:01:16]} 24. Nxe4 {[%clk 0:02:28]}  Rcxd5 {[%clk 0:01:05]} 25. Bxb6 {[%clk 0:02:25]}  Rxd2 {[%clk 0:01:05]} 26. Nexd2 {[%clk 0:02:19]}  Rc8 {[%clk 0:01:03]} 27. Bd4 {[%clk 0:02:16]}  Nf4 {[%clk 0:01:01]} 28. Ne4 {[%clk 0:02:00]}  Rc2 {[%clk 0:00:52]} 29. Kf1 {[%clk 0:01:30]}  Bd5 {[%clk 0:00:25]} 30. Bc3 {[%clk 0:01:24]}  b4 {[%clk 0:00:17]} 31. Nd4 {[%clk 0:01:18]}  Bxe4 {[%clk 0:00:11]} 32. Rxe4 {[%clk 0:01:06]}  Rc1+ {[%clk 0:00:11]} 33. Re1 {[%clk 0:01:07]}  Rxe1+ {[%clk 0:00:02]} 34. Bxe1 {[%clk 0:01:08]}  Nd3 {[%clk 0:00:03]} 35. b3 {[%clk 0:01:07]}  a5 {[%clk 0:00:01]} 36. Nc6 {[%clk 0:01:07]}  Nc1 {[%clk 0:00:01]} 37. Nxa5 {[%clk 0:01:07]}  Nxa2 {[%clk 0:00:02]} 38. Nc6 {[%clk 0:01:07]}  Nc1 {[%clk 0:00:01]} 39. Nd4 {[%clk 0:01:08]}  Nd3 {[%clk 0:00:02]} 40. Ke2 {[%clk 0:01:07]}  Nxe5 {[%clk 0:00:02]} 41. Bxb4 {[%clk 0:01:07]}  f5 {[%clk 0:00:03]} 42. Bd6 {[%clk 0:01:08]}  Nc6 {[%clk 0:00:02]} 43. Nxc6 {[%clk 0:01:08]} 1-0


[Site "https://www.chess.com"]

[Event "Titled Tuesday Blitz June 29 2021"]
[White "PlotnikovPavel"]
[Black "BJthechessgod"]
[WhiteElo "2451"]
[BlackElo "2268"]
[Result "1-0"]
[Round "11"]
[TimeControl "180+1"]
[Date "2021.06.29"]
[WhiteClock "0:00:55"]
[BlackClock "0:00:02"]

1. e4 {[%clk 0:03:00]}  c5 {[%clk 0:02:59]} 2. Nf3 {[%clk 0:02:54]}  e6 {[%clk 0:03:00]} 3. d4 {[%clk 0:02:53]}  cxd4 {[%clk 0:03:01]} 4. Nxd4 {[%clk 0:02:54]}  Nc6 {[%clk 0:03:01]} 5. Nc3 {[%clk 0:02:53]}  Qc7 {[%clk 0:03:01]} 6. Be3 {[%clk 0:02:53]}  a6 {[%clk 0:03:01]} 7. Qf3 {[%clk 0:02:53]}  Nf6 {[%clk 0:03:01]} 8. Bd3 {[%clk 0:02:52]}  Ne5 {[%clk 0:03:00]} 9. Qe2 {[%clk 0:02:51]}  Nxd3+ {[%clk 0:02:59]} 10. Qxd3 {[%clk 0:02:52]}  Bb4 {[%clk 0:02:59]} 11. O-O {[%clk 0:02:52]}  Bxc3 {[%clk 0:02:59]} 12. bxc3 {[%clk 0:02:52]}  d5 {[%clk 0:02:59]} 13. exd5 {[%clk 0:02:52]}  Nxd5 {[%clk 0:02:59]} 14. c4 {[%clk 0:02:52]}  Nxe3 {[%clk 0:02:57]} 15. fxe3 {[%clk 0:02:51]}  O-O {[%clk 0:02:57]} 16. Rad1 {[%clk 0:02:49]}  e5 {[%clk 0:02:53]} 17. Nf3 {[%clk 0:02:48]}  Be6 {[%clk 0:02:53]} 18. Nd2 {[%clk 0:02:40]}  Rfd8 {[%clk 0:02:42]} 19. Qe2 {[%clk 0:02:39]}  Rac8 {[%clk 0:02:28]} 20. e4 {[%clk 0:02:18]}  f6 {[%clk 0:02:05]} 21. Kh1 {[%clk 0:01:39]}  Bxc4 {[%clk 0:01:38]} 22. Nxc4 {[%clk 0:01:35]}  Rxd1 {[%clk 0:01:28]} 23. Rxd1 {[%clk 0:01:33]}  Qxc4 {[%clk 0:01:28]} 24. Qg4 {[%clk 0:01:29]}  Qxc2 {[%clk 0:01:22]} 25. Qe6+ {[%clk 0:01:29]}  Kh8 {[%clk 0:01:18]} 26. Qd7 {[%clk 0:01:28]}  h6 {[%clk 0:00:58]} 27. h3 {[%clk 0:01:28]}  Qc6 {[%clk 0:00:52]} 28. Qg4 {[%clk 0:01:22]}  Rg8 {[%clk 0:00:24]} 29. Qg6 {[%clk 0:01:20]}  Qe8 {[%clk 0:00:23]} 30. Qf5 {[%clk 0:01:18]}  Qc8 {[%clk 0:00:21]} 31. Qg6 {[%clk 0:01:17]}  b5 {[%clk 0:00:19]} 32. Rf1 {[%clk 0:01:17]}  Qc4 {[%clk 0:00:12]} 33. Rf3 {[%clk 0:01:11]}  Qc1+ {[%clk 0:00:10]} 34. Kh2 {[%clk 0:01:12]}  Qc7 {[%clk 0:00:07]} 35. Ra3 {[%clk 0:01:10]}  a5 {[%clk 0:00:06]} 36. Qg3 {[%clk 0:01:09]}  b4 {[%clk 0:00:06]} 37. Rf3 {[%clk 0:01:08]}  a4 {[%clk 0:00:05]} 38. Qe1 {[%clk 0:01:06]}  Qc4 {[%clk 0:00:05]} 39. Qb1 {[%clk 0:01:04]}  Rd8 {[%clk 0:00:04]} 40. Rg3 {[%clk 0:00:57]}  Rd4 {[%clk 0:00:04]} 41. Rg4 {[%clk 0:00:56]}  Qc3 {[%clk 0:00:02]} 42. Qf1 {[%clk 0:00:55]}  Qe3 {[%clk 0:00:02]} 43. Qf5 {[%clk 0:00:55]} 1-0


[Site "https://www.chess.com"]

[Event "Titled Tuesday Blitz June 29 2021"]
[White "PowerThinking2650"]
[Black "ChessQueen"]
[WhiteElo "2418"]
[BlackElo "2633"]
[Result "0-1"]
[Round "11"]
[TimeControl "180+1"]
[Date "2021.06.29"]
[WhiteClock "0:00:08"]
[BlackClock "0:02:02"]

1. e4 {[%clk 0:03:00]}  c5 {[%clk 0:03:00]} 2. Nf3 {[%clk 0:03:00]}  Nc6 {[%clk 0:03:00]} 3. d4 {[%clk 0:03:01]}  cxd4 {[%clk 0:03:00]} 4. Nxd4 {[%clk 0:03:01]}  Nf6 {[%clk 0:03:01]} 5. Nc3 {[%clk 0:03:01]}  d6 {[%clk 0:03:01]} 6. Bc4 {[%clk 0:03:00]}  e6 {[%clk 0:03:02]} 7. Be3 {[%clk 0:03:00]}  a6 {[%clk 0:03:02]} 8. Qe2 {[%clk 0:03:00]}  Qc7 {[%clk 0:03:00]} 9. O-O-O {[%clk 0:03:00]}  Na5 {[%clk 0:02:59]} 10. Bb3 {[%clk 0:02:50]}  b5 {[%clk 0:02:59]} 11. Kb1 {[%clk 0:02:10]}  Be7 {[%clk 0:02:53]} 12. g4 {[%clk 0:02:02]}  b4 {[%clk 0:02:49]} 13. Na4 {[%clk 0:01:50]}  Nxb3 {[%clk 0:02:45]} 14. cxb3 {[%clk 0:01:39]}  Nxe4 {[%clk 0:02:34]} 15. Rc1 {[%clk 0:01:26]}  Nc5 {[%clk 0:02:33]} 16. a3 {[%clk 0:00:29]}  Qb7 {[%clk 0:02:21]} 17. Nxc5 {[%clk 0:00:20]}  dxc5 {[%clk 0:02:20]} 18. Nf5 {[%clk 0:00:13]}  exf5 {[%clk 0:02:15]} 19. Bxc5 {[%clk 0:00:12]}  Qe4+ {[%clk 0:02:12]} 20. Rc2 {[%clk 0:00:08]}  Bxc5 {[%clk 0:02:07]} 21. Qxe4+ {[%clk 0:00:07]}  fxe4 {[%clk 0:02:07]} 22. Rxc5 {[%clk 0:00:08]}  Bxg4 {[%clk 0:02:02]} 0-1


[Site "https://www.chess.com"]